bitfinex/quotes_BTCUSD_20251029
["timestamp","ask_amount","ask_price","bid_price","bid_amount"]
[1761720641514,0.5556539,113300.0,113290.0,0.20791488]
[1761720641753,0.57463347,113300.0,113290.0,0.20791488]
[1761720644406,0.20384457,113300.0,113290.0,0.20791488]
[1761720644590,0.184865,113300.0,113290.0,0.23439488]
[1761720645915,0.1765225,113300.0,113290.0,0.23439488]
[1761720647697,0.7596701,113310.0,113290.0,0.23439488]
[1761720647902,0.84948911,113310.0,113290.0,0.20750138]
[1761720648106,0.84948911,113310.0,113300.0,0.00063516]
[1761720649909,0.84948911,113310.0,113300.0,0.00263516]
[1761720656882,0.84948911,113310.0,113300.0,0.17915766]
[1761720657458,0.64948911,113310.0,113300.0,0.17915766]
[1761720657686,0.64948911,113310.0,113300.0,0.00263516]
[1761720657892,0.65775277,113310.0,113300.0,0.00263516]
[1761720658495,0.65775277,113310.0,113300.0,0.17915766]
[1761720659942,0.02731158,113310.0,113300.0,0.20563766]
[1761720660115,0.37905256,113310.0,113300.0,0.20563766]
[1761720660319,0.42490979,113310.0,113300.0,0.19044766]
[1761720660584,0.42490979,113310.0,113300.0,0.17915766]
[1761720662337,0.60141671,113310.0,113300.0,0.17915766]
[1761720662910,0.89123572,113310.0,113300.0,0.17915766]
[1761720664473,0.29363751,113310.0,113300.0,0.17915766]
[1761720664674,0.66442641,113310.0,113300.0,0.17915766]
[1761720666994,0.48791949,113310.0,113300.0,0.17915766]
[1761720667198,0.66442641,113310.0,113300.0,0.17915766]
[1761720667408,0.68823631,113310.0,113300.0,0.17915766]
[1761720669169,0.70479746,113310.0,113300.0,0.17915766]
[1761720670043,0.70479746,113310.0,113300.0,0.20550766]
[1761720670044,0.15750164,113310.0,113300.0,0.20550766]
[1761720670271,0.50924262,113310.0,113300.0,0.20550766]
[1761720670485,0.70479746,113310.0,113300.0,0.19045766]
[1761720672744,0.15750164,113310.0,113300.0,0.19045766]
[1761720672991,0.50924262,113310.0,113300.0,0.20630766]
[1761720673144,0.52829054,113310.0,113300.0,0.20630766]
[1761720673571,0.70479746,113310.0,113300.0,0.20630766]
[1761720675072,0.52829054,113310.0,113300.0,0.20630766]
[1761720675302,0.70479746,113310.0,113300.0,0.20630766]
[1761720675503,0.15750164,113310.0,113300.0,0.20630766]
[1761720675856,0.00826366,113310.0,113300.0,0.60036656]
[1761720676079,0.07451315,113320.0,113310.0,0.17650692]
[1761720676305,0.15748975,113320.0,113310.0,0.19235692]
[1761720676523,0.13844183,113320.0,113310.0,0.19235692]
[1761720676866,0.13844183,113320.0,113310.0,0.20402692]
[1761720677401,0.13844183,113320.0,113310.0,0.22729692]
[1761720677619,0.31493318,113320.0,113310.0,0.22729692]
[1761720677808,0.3339811,113320.0,113310.0,0.20402692]
[1761720678011,0.15748975,113320.0,113310.0,0.20402692]
[1761720678187,0.31493318,113320.0,113310.0,0.20402692]
[1761720678396,0.05112879,113320.0,113310.0,0.59808582]
[1761720678593,0.00827097,113320.0,113310.0,0.59808582]
[1761720678946,0.84760234,113330.0,113320.0,0.17649135]
[1761720679210,0.96223612,113330.0,113320.0,0.17649135]
[1761720681246,0.59144722,113330.0,113320.0,0.17649135]
[1761720681451,0.96223612,113330.0,113320.0,0.17649135]
[1761720686851,0.96223612,113330.0,113320.0,0.17670303]
[1761720687051,0.93058079,113330.0,113320.0,0.17670303]
[1761720687275,0.55979189,113330.0,113320.0,0.17670303]
[1761720687511,0.93058079,113330.0,113320.0,0.17670303]
[1761720687745,0.54560428,113330.0,113320.0,0.20422303]
[1761720688181,0.72208005,113330.0,113320.0,0.20422303]
[1761720688582,0.72208005,113330.0,113320.0,0.18837303]
[1761720689068,0.72202326,113330.0,113320.0,0.18837303]
[1761720689261,0.70548008,113330.0,113320.0,0.18837303]
[1761720689870,0.33469118,113330.0,113320.0,0.18837303]
[1761720690075,0.52023732,113330.0,113320.0,0.20422303]
[1761720690288,0.49642742,113330.0,113320.0,0.20422303]
[1761720690677,0.03581951,113330.0,113320.0,0.20422303]
[1761720690877,0.01677159,113330.0,113320.0,0.20422303]
[1761720692958,0.01677159,113330.0,113320.0,0.20622303]
[1761720694104,0.01677159,113330.0,113320.0,0.22949303]
[1761720694944,0.01904792,113340.0,113330.0,0.17647577]
[1761720695140,0.0238099,113360.0,113350.0,0.17644464]
[1761720695353,0.51903241,113370.0,113360.0,0.17642907]
[1761720695504,0.52728751,113370.0,113360.0,0.22721907]
[1761720696022,0.52728751,113370.0,113360.0,0.20394907]
[1761720696222,0.52741544,113370.0,113360.0,0.18809907]
[1761720696431,0.89820434,113370.0,113360.0,0.17642907]
[1761720696644,0.89820434,113370.0,113360.0,0.17842907]
[1761720696979,0.02741544,113370.0,113360.0,0.17842907]
[1761720697183,0.06671757,113370.0,113360.0,0.17842907]
[1761720699630,0.24313108,113370.0,113360.0,0.17842907]
[1761720699873,0.06671757,113370.0,113360.0,0.17842907]
[1761720703539,0.00838303,113370.0,113360.0,0.17842907]
[1761720703979,0.51639808,113380.0,113360.0,0.17842907]
[1761720704213,0.60621709,113380.0,113360.0,0.17842907]
[1761720704621,0.61509416,113380.0,113360.0,0.17842907]
[1761720705607,0.42981901,113380.0,113370.0,0.17641351]
[1761720705798,0.60621696,113380.0,113370.0,0.17641351]
[1761720706165,0.08981901,113380.0,113370.0,0.17641351]
[1761720706373,0.725202,113390.0,113380.0,0.17539795]
[1761720706603,0.8238441,113390.0,113380.0,0.17639795]
[1761720707186,0.8238441,113390.0,113380.0,0.17539795]
[1761720707805,0.8238441,113390.0,113380.0,0.17739795]
[1761720708879,0.8238441,113390.0,113380.0,0.002]
[1761720709083,0.8238441,113390.0,113380.0,0.17839795]
[1761720709718,0.17639795,113380.0,113370.0,0.17641351]
[1761720709931,0.8238441,113390.0,113380.0,0.001]
[1761720710838,1.27058664,113390.0,113380.0,0.001]
[1761720712670,0.37641351,113370.0,113360.0,0.18525052]
[1761720714308,0.37641351,113370.0,113360.0,0.18725052]
[1761720715881,0.38464701,113370.0,113360.0,0.18725052]
[1761720716105,0.40361666,113370.0,113360.0,0.18725052]
[1761720716853,0.02720315,113370.0,113360.0,0.18725052]
[1761720717062,0.0082335,113370.0,113360.0,0.18725052]
[1761720717502,0.0082335,113370.0,113360.0,0.58511889]
[1761720717683,0.0082335,113370.0,113360.0,0.60788889]
[1761720718358,0.0082335,113370.0,113360.0,0.63440055]
[1761720718936,0.0082335,113370.0,113360.0,1.00469892]
[1761720719463,0.0082335,113370.0,113360.0,1.43451793]
[1761720720094,0.0082335,113370.0,113360.0,1.43251793]
[1761720720308,0.0082335,113370.0,113360.0,0.69192119]
[1761720720616,0.0082335,113370.0,113360.0,1.07021956]
[1761720721010,0.49200217,113410.0,113390.0,0.17638239]
[1761720721211,0.26618671,113400.0,113390.0,0.17638239]
[1761720721419,0.28515636,113400.0,113390.0,0.17638239]
[1761720722679,0.28515636,113400.0,113390.0,0.17938239]
[1761720723298,0.30166436,113400.0,113390.0,0.17938239]
[1761720729607,0.30166436,113400.0,113390.0,0.19488239]
[1761720729834,0.30166436,113400.0,113390.0,0.20647239]
[1761720730463,0.12529666,113400.0,113390.0,0.20647239]
[1761720730660,0.12529666,113400.0,113390.0,0.22903239]
[1761720730873,0.3016635,113400.0,113390.0,0.20647239]
[1761720731011,0.33331883,113400.0,113390.0,0.19212174]
[1761720731213,0.2851555,113400.0,113390.0,0.16503174]
[1761720732064,0.2851555,113400.0,113390.0,0.18126174]
[1761720732502,0.2851555,113400.0,113390.0,0.19306174]
[1761720733097,0.29340787,113400.0,113390.0,0.19306174]
[1761720733335,0.29340787,113400.0,113390.0,0.16503174]
[1761720733604,0.37006469,113400.0,113390.0,0.17938239]
[1761720734776,0.11704112,113400.0,113390.0,0.19561239]
[1761720734979,0.29340796,113400.0,113390.0,0.20741239]
[1761720735375,0.29340796,113400.0,113390.0,0.20441239]
[1761720735774,0.29340796,113400.0,113390.0,0.20541239]
[1761720736404,0.29340796,113400.0,113390.0,0.17738239]
[1761720736607,0.37006479,113400.0,113390.0,0.17738239]
[1761720736991,0.37006479,113400.0,113390.0,0.001]
[1761720737204,0.37006479,113400.0,113390.0,0.17738239]
[1761720738746,0.38657036,113400.0,113390.0,0.17738239]
[1761720739711,0.11704112,113400.0,113390.0,0.20541239]
[1761720739885,0.29340796,113400.0,113390.0,0.20541239]
[1761720740275,0.29340796,113400.0,113390.0,0.18918239]
[1761720740473,0.29340796,113400.0,113390.0,0.17738239]
[1761720741113,2.0,113390.0,113330.0,0.01999998]
[1761720741322,2.0,113390.0,113320.0,0.01201168]
[1761720741323,0.54677252,113340.0,113320.0,0.01201168]
[1761720741531,0.2,113330.0,113320.0,0.02824168]
[1761720741741,0.00825246,113330.0,113320.0,0.20473303]
[1761720741988,0.00825246,113330.0,113320.0,0.5999614]
[1761720742237,0.07926728,113370.0,113350.0,0.17644263]
[1761720742538,0.00825384,113370.0,113360.0,0.57433744]
[1761720742759,0.00825384,113370.0,113360.0,0.59926744]
[1761720742989,0.00825384,113370.0,113360.0,1.39938482]
[1761720743223,0.00725,113400.0,113380.0,0.17639795]
[1761720743457,0.00725,113400.0,113390.0,0.60547899]
[1761720743682,0.05816201,113420.0,113400.0,0.17635293]
[1761720743915,0.03120296,113420.0,113410.0,0.20438129]
[1761720744591,0.00034486,113420.0,113410.0,0.59960966]
[1761720745280,0.00034486,113420.0,113410.0,0.68942867]
[1761720745506,0.00034486,113420.0,113410.0,0.59960966]
[1761720745720,0.00034486,113420.0,113410.0,0.22931129]
[1761720745925,0.00034486,113420.0,113410.0,0.23231129]
[1761720746202,0.00759486,113420.0,113410.0,0.20738129]
[1761720746864,0.00034486,113420.0,113410.0,0.20738129]
[1761720747073,0.00034486,113420.0,113410.0,0.23231129]
[1761720747322,0.00034486,113420.0,113410.0,0.23331129]
[1761720748154,0.00034486,113420.0,113410.0,0.60360966]
[1761720753300,0.00034486,113420.0,113410.0,0.23331129]
[1761720754694,0.00034486,113420.0,113410.0,0.60360966]
[1761720754896,0.00034486,113420.0,113410.0,0.23331129]
[1761720755527,0.00857571,113420.0,113410.0,0.23331129]
[1761720755931,0.02307571,113420.0,113410.0,0.18035129]
[1761720756132,0.2564009,113420.0,113410.0,0.18035129]
[1761720756346,0.82669927,113420.0,113410.0,0.004]
[1761720756622,0.84565303,113420.0,113410.0,0.18035129]
[1761720756789,0.47535466,113420.0,113410.0,0.18035129]
[1761720756965,0.47535466,113420.0,113410.0,0.17935129]
[1761720757836,0.47535466,113420.0,113410.0,0.17635129]
[1761720758986,0.56517367,113420.0,113400.0,0.17635293]
[1761720759197,0.00725,113410.0,113400.0,0.17635293]
[1761720759413,0.01548085,113410.0,113400.0,0.17635293]
[1761720759710,0.00823085,113410.0,113400.0,0.21514293]
[1761720760557,0.01548085,113410.0,113400.0,0.19238293]
[1761720761959,0.00823085,113410.0,113400.0,0.5854413]
[1761720762567,0.00823085,113410.0,113400.0,0.95773967]
[1761720762814,0.00034486,113420.0,113410.0,0.17635129]
[1761720762991,0.00857708,113420.0,113410.0,0.59764966]
[1761720765002,0.00857708,113420.0,113410.0,0.60164966]
[1761720765447,0.00857708,113420.0,113410.0,0.6012228]
[1761720768929,0.01582708,113420.0,113410.0,0.20859129]
[1761720769164,0.03578681,113420.0,113410.0,0.20859129]
[1761720770531,0.01582708,113420.0,113410.0,0.5784628]
[1761720770739,0.00857708,113420.0,113410.0,0.6012228]
[1761720771347,0.01582708,113420.0,113410.0,0.20859129]
[1761720771559,0.01582708,113420.0,113410.0,0.5784628]
[1761720772396,0.01582708,113420.0,113410.0,0.5662528]
[1761720772594,0.03768219,113420.0,113410.0,0.5662528]
[1761720772803,0.01582708,113420.0,113410.0,0.5784628]
[1761720773491,0.00857708,113420.0,113410.0,0.6012228]
[1761720776023,0.01582708,113420.0,113410.0,0.18035129]
[1761720776632,0.01582708,113420.0,113410.0,0.19638129]
[1761720777036,0.01582708,113420.0,113410.0,0.20859129]
[1761720779407,0.01582708,113420.0,113410.0,0.5784628]
[1761720779809,0.00857708,113420.0,113410.0,0.6012228]
[1761720780012,0.01582708,113420.0,113410.0,0.20859129]
[1761720782318,0.01582708,113420.0,113410.0,0.23135129]
[1761720782974,0.00857708,113420.0,113410.0,0.23135129]
[1761720783196,0.01582708,113420.0,113410.0,0.5784628]
[1761720783669,0.01582708,113420.0,113410.0,0.20859129]
[1761720783958,0.01582708,113420.0,113410.0,0.19256129]
[1761720784620,0.72032496,113420.0,113410.0,0.18035129]
[1761720784827,0.73927872,113420.0,113410.0,0.18035129]
[1761720785466,0.73927872,113420.0,113410.0,0.17935129]
[1761720785683,1.34947307,113420.0,113410.0,0.003]
[1761720785896,0.17635129,113410.0,113400.0,0.17635293]
[1761720786127,0.23055204,113410.0,113400.0,0.17635293]
[1761720786339,0.2495058,113410.0,113400.0,0.17635293]
[1761720786549,0.2495058,113410.0,113390.0,0.1974115]
[1761720786777,0.2495058,113410.0,113390.0,0.2201715]
[1761720786991,0.2495058,113410.0,113400.0,0.17636684]
[1761720787835,0.71644632,113410.0,113400.0,0.17636684]
[1761720788058,0.71644632,113410.0,113390.0,0.1974115]
[1761720788266,0.70919632,113410.0,113400.0,0.17636684]
[1761720788681,0.33932481,113410.0,113400.0,0.17836684]
[1761720788883,0.34657481,113410.0,113400.0,0.17836684]
[1761720789084,0.34657481,113410.0,113400.0,0.17636684]
[1761720790344,0.13150499,113410.0,113400.0,0.20349684]
[1761720790562,0.01548222,113410.0,113400.0,0.59695835]
[1761720790960,0.00823222,113410.0,113400.0,0.59695835]
[1761720791159,0.00823222,113410.0,113400.0,0.96882986]
[1761720791359,0.01585539,113420.0,113410.0,0.17635129]
[1761720791558,0.01585539,113420.0,113410.0,0.22707129]
[1761720792532,0.26082218,113420.0,113410.0,0.20348129]
[1761720792738,0.27977594,113420.0,113410.0,0.20348129]
[1761720792975,0.47331171,113420.0,113410.0,0.20348129]
[1761720793467,0.1034402,113420.0,113410.0,0.20348129]
[1761720793674,0.02310539,113420.0,113410.0,0.20348129]
[1761720795773,0.02310539,113420.0,113410.0,0.18839129]
[1761720797451,0.02310539,113420.0,113410.0,0.20492129]
[1761720797652,0.02310539,113420.0,113410.0,0.18839129]
[1761720798597,0.02310539,113420.0,113410.0,0.5747928]
[1761720798776,0.02310539,113420.0,113410.0,0.5980628]
[1761720798984,0.02310539,113420.0,113410.0,0.5747928]
[1761720799945,0.02310539,113420.0,113410.0,0.20492129]
[1761720800905,0.02310539,113420.0,113410.0,0.20692129]
[1761720802577,0.02310539,113420.0,113410.0,0.19039129]
[1761720802787,0.63511917,113420.0,113410.0,0.17835129]
[1761720804616,0.92493818,113420.0,113410.0,0.002]
[1761720805921,0.94146787,113420.0,113410.0,0.002]
[1761720806779,0.94146787,113420.0,113410.0,0.17835129]
[1761720807912,0.57159636,113420.0,113410.0,0.17835129]
[1761720808108,0.94146787,113420.0,113410.0,0.17835129]
[1761720808787,0.57159636,113420.0,113410.0,0.002]
[1761720808950,0.94146787,113420.0,113410.0,0.002]
[1761720810750,0.94146787,113420.0,113410.0,0.17835129]
[1761720811131,0.87566134,113420.0,113410.0,0.17835129]
[1761720811275,0.30578983,113420.0,113410.0,0.17835129]
[1761720812337,0.21597082,113420.0,113410.0,0.5771528]
[1761720812498,0.19944113,113420.0,113410.0,0.6004228]
[1761720812894,0.19944113,113420.0,113410.0,0.5771528]
[1761720813135,0.02310539,113420.0,113410.0,0.5771528]
[1761720813375,0.02310539,113420.0,113410.0,0.6004228]
[1761720813577,0.19944113,113420.0,113410.0,0.6004228]
[1761720813820,0.02310539,113420.0,113410.0,0.6004228]
[1761720815200,0.01585539,113420.0,113410.0,0.6004228]
[1761720816389,0.00860539,113420.0,113410.0,0.6004228]
[1761720816816,0.00034486,113420.0,113410.0,0.6004228]
[1761720817892,0.00759486,113420.0,113410.0,0.6004228]
[1761720818128,0.01585539,113420.0,113410.0,0.6004228]
[1761720818743,0.01585539,113420.0,113410.0,0.5771528]
[1761720818942,0.00860539,113420.0,113410.0,0.6011528]
[1761720819137,0.00034486,113420.0,113410.0,0.6011528]
[1761720820311,0.00759486,113420.0,113410.0,0.5771528]
[1761720820515,0.01585539,113420.0,113410.0,0.5771528]
[1761720820723,0.00860539,113420.0,113410.0,0.6011528]
[1761720820945,0.00034486,113420.0,113410.0,0.6011528]
[1761720825449,0.00034486,113420.0,113410.0,0.60115002]
[1761720826029,0.00034486,113420.0,113410.0,0.69096903]
[1761720826221,0.00034486,113420.0,113410.0,0.60115002]
[1761720828281,0.17630822,113440.0,113430.0,0.17632019]
[1761720828482,0.26660992,113440.0,113430.0,0.17632019]
[1761720828902,0.0903017,113440.0,113430.0,0.20434019]
[1761720829461,0.00148269,113440.0,113430.0,0.20434019]
[1761720829678,0.00148269,113440.0,113430.0,0.22834019]
[1761720830088,0.00148269,113440.0,113430.0,0.59820892]
[1761720830333,0.00048269,113440.0,113430.0,0.59820892]
[1761720831163,0.00048269,113440.0,113430.0,0.22834019]
[1761720831855,0.00148269,113440.0,113430.0,0.22934019]
[1761720832168,0.00048269,113440.0,113430.0,0.22934019]
[1761720832512,0.00048269,113440.0,113430.0,0.23234019]
[1761720834254,0.75170715,113460.0,113440.0,0.17630465]
[1761720834451,0.26610818,113450.0,113440.0,0.17630465]
[1761720836522,0.26610812,113450.0,113440.0,0.17630465]
[1761720836727,0.08981901,113450.0,113440.0,0.17630465]
[1761720836905,0.08981901,113450.0,113440.0,0.17830465]
[1761720837316,0.26610812,113450.0,113440.0,0.17830465]
[1761720837485,0.08981901,113450.0,113440.0,0.19442465]
[1761720838382,0.21022841,113460.0,113450.0,0.17628911]
[1761720839507,0.0002088,113460.0,113450.0,0.59817784]
[1761720839997,0.0002088,113460.0,113450.0,0.62466686]
[1761720840356,0.0002088,113460.0,113450.0,0.25479813]
[1761720841029,0.0002088,113460.0,113450.0,0.25579813]
[1761720841777,0.0002088,113460.0,113450.0,0.63266686]
[1761720842384,0.0002088,113460.0,113450.0,0.71475401]
[1761720842586,0.0002088,113460.0,113450.0,0.80457302]
[1761720844110,0.0002088,113460.0,113450.0,1.14457302]
[1761720851492,0.00845225,113470.0,113460.0,1.2648247]
[1761720851493,0.0082226,113470.0,113460.0,1.2648247]
[1761720851707,0.0082226,113470.0,113460.0,1.49536272]
[1761720852385,0.0082226,113470.0,113460.0,1.43202714]
[1761720852832,10.31671938,113500.0,113490.0,0.17622698]
[1761720853042,10.31686407,113500.0,113490.0,0.57425571]
[1761720853266,10.31686407,113500.0,113490.0,0.59699571]
[1761720853465,10.31686407,113500.0,113490.0,0.22712698]
[1761720853612,10.31686407,113500.0,113490.0,0.25360618]
[1761720854236,9.81686407,113500.0,113490.0,0.25360618]
[1761720855647,9.81686407,113500.0,113490.0,0.25560618]
[1761720855849,9.81686407,113500.0,113490.0,0.25660618]
[1761720857537,9.81686407,113500.0,113490.0,0.20570618]
[1761720859902,10.19307552,113500.0,113490.0,0.20570618]
[1761720860055,10.28289453,113500.0,113490.0,0.17922698]
[1761720860904,10.28289453,113500.0,113490.0,0.17822698]
[1761720861404,10.28289453,113500.0,113490.0,0.17049191]
[1761720861603,10.28289453,113500.0,113490.0,0.1618893]
[1761720862813,10.28289453,113500.0,113490.0,0.15041912]
[1761720863258,10.28289453,113500.0,113480.0,0.21484666]
[1761720863535,10.28289453,113500.0,113490.0,0.17622698]
[1761720864930,10.29111822,113500.0,113490.0,0.17622698]
[1761720866416,9.91490677,113500.0,113490.0,0.17622698]
[1761720866617,9.82508776,113500.0,113490.0,0.59699571]
[1761720867110,9.82508776,113500.0,113490.0,0.62347671]
[1761720868203,9.82508776,113500.0,113490.0,0.25460798]
[1761720868850,9.82508776,113500.0,113490.0,0.25560798]
[1761720871563,9.82508776,113500.0,113490.0,0.24700626]
[1761720873584,9.82508776,113500.0,113490.0,0.22426626]
[1761720873784,9.82508776,113500.0,113490.0,0.19610626]
[1761720873980,9.84158851,113500.0,113490.0,0.18463673]
[1761720874329,10.21779996,113500.0,113490.0,0.15815573]
[1761720875199,10.21779996,113500.0,113490.0,0.15715573]
[1761720875716,10.30761897,113500.0,113480.0,0.21484631]
[1761720876029,10.30761897,113500.0,113490.0,0.17622698]
[1761720876391,10.30761897,113500.0,113490.0,0.1704919]
[1761720878008,10.30761897,113500.0,113480.0,0.20272631]
[1761720878267,10.30761897,113500.0,113490.0,0.17622698]
[1761720880845,9.84158851,113500.0,113490.0,0.22643698]
[1761720881080,9.84158851,113500.0,113490.0,0.59630571]
[1761720881297,9.82508776,113500.0,113490.0,0.59630571]
[1761720882459,9.82508776,113500.0,113490.0,0.59830571]
[1761720882891,9.82508776,113500.0,113490.0,0.22843698]
[1761720883096,9.82508776,113500.0,113490.0,0.59830571]
[1761720883656,9.82508776,113500.0,113490.0,0.22843698]
[1761720883886,9.82508776,113500.0,113490.0,0.20575698]
[1761720886774,9.86791534,113500.0,113490.0,0.17822698]
[1761720887450,9.86795361,113500.0,113490.0,0.19396698]
[1761720887652,10.04416506,113500.0,113490.0,0.19396698]
[1761720887919,10.04416506,113500.0,113490.0,0.17822698]
[1761720888146,10.24416506,113500.0,113490.0,0.19396698]
[1761720888409,10.04416506,113500.0,113490.0,0.19396698]
[1761720888652,10.24416506,113500.0,113490.0,0.19396698]
[1761720890550,10.02229795,113500.0,113490.0,0.19396698]
[1761720890797,10.11211696,113500.0,113490.0,0.17822698]
[1761720891044,10.48158248,113500.0,113490.0,0.17822698]
[1761720891269,10.49810794,113500.0,113490.0,0.17822698]
[1761720891473,10.48158299,113500.0,113490.0,0.17822698]
[1761720891910,10.11211747,113500.0,113490.0,0.17722698]
[1761720892108,10.11211747,113500.0,113490.0,0.17622698]
[1761720894902,10.48158299,113500.0,113490.0,0.17622698]
[1761720895115,10.11211747,113500.0,113490.0,0.17622698]
[1761720895333,10.11211747,113500.0,113490.0,0.19196698]
[1761720895529,10.11211747,113500.0,113490.0,0.17622698]
[1761720895950,9.91211747,113500.0,113490.0,0.17622698]
[1761720896592,9.73590602,113500.0,113490.0,0.5456925]
[1761720896796,9.73590602,113500.0,113490.0,0.5614325]
[1761720897013,9.73590602,113500.0,113490.0,0.5732225]
[1761720897211,9.73590602,113500.0,113490.0,0.5959025]
[1761720897619,9.73590607,113500.0,113490.0,0.5959025]
[1761720899170,9.64608706,113500.0,113490.0,0.5959025]
[1761720900132,9.62705258,113500.0,113490.0,0.5959025]
[1761720900811,9.62705258,113500.0,113490.0,0.5969025]
[1761720901023,9.62705268,113500.0,113490.0,0.5969025]
[1761720901225,9.62705268,113500.0,113490.0,0.5989025]
[1761720905653,9.64608764,113500.0,113490.0,0.5989025]
[1761720906301,9.82229909,113500.0,113490.0,0.17922698]
[1761720906503,10.19176461,113500.0,113490.0,0.17922698]
[1761720906721,9.64608764,113500.0,113490.0,0.20675698]
[1761720906965,9.82229909,113500.0,113490.0,0.20675698]
[1761720907382,9.82229909,113500.0,113490.0,0.20575698]
[1761720907852,10.1121181,113500.0,113490.0,0.002]
[1761720908024,10.1121181,113500.0,113480.0,0.17624124]
[1761720908025,0.17622698,113490.0,113480.0,0.17624124]
[1761720908315,0.09808163,113490.0,113480.0,0.19273124]
[1761720908519,10.58350199,113500.0,113490.0,1.90191837]
[1761720908698,10.05435413,113500.0,113490.0,1.90191837]
[1761720908925,10.42381965,113500.0,113490.0,1.90191837]
[1761720909680,10.40002655,113500.0,113490.0,1.90191837]
[1761720910556,10.22381965,113500.0,113490.0,2.07814535]
[1761720910904,10.40002382,113500.0,113490.0,1.90191837]
[1761720911565,10.40002296,113500.0,113490.0,1.90191837]
[1761720911775,10.40002296,113500.0,113490.0,2.07814535]
[1761720912046,10.18350199,113500.0,113490.0,2.07814535]
[1761720913370,10.18350199,113500.0,113490.0,1.90191837]
[1761720913560,10.20002188,113500.0,113490.0,1.90191837]
[1761720913773,10.18350199,113500.0,113490.0,1.90191837]
[1761720913973,10.20002192,113500.0,113490.0,2.07814535]
[1761720914245,9.8305564,113500.0,113490.0,2.07814535]
[1761720914447,9.81403647,113500.0,113490.0,2.07814535]
[1761720916467,9.81403647,113500.0,113490.0,0.19143698]
[1761720917314,9.81403647,113500.0,113490.0,0.17622698]
[1761720919239,9.81403647,113500.0,113490.0,2.07814535]
[1761720919450,9.80943647,113500.0,113490.0,2.07814535]
[1761720920323,9.80943647,113500.0,113490.0,2.09335535]
[1761720920578,9.81769578,113500.0,113490.0,2.09335535]
[1761720921251,9.81769578,113500.0,113490.0,2.07814535]
[1761720921998,10.3871613,113500.0,113490.0,1.90191837]
[1761720922245,10.4109544,113500.0,113490.0,1.90191837]
[1761720922617,10.41095439,113500.0,113490.0,1.90191837]
[1761720923928,11.41023892,113500.0,113490.0,1.90191837]
[1761720924161,11.11848213,113500.0,113490.0,1.90191837]
[1761720925129,11.09468903,113500.0,113490.0,1.90191837]
[1761720925364,11.11847319,113500.0,113490.0,1.90191837]
[1761720925578,11.09468903,113500.0,113490.0,1.90191837]
[1761720928638,10.35575799,113500.0,113490.0,1.90191837]
[1761720928860,11.09468903,113500.0,113490.0,1.90191837]
[1761720931740,10.74899579,113500.0,113490.0,1.90191837]
[1761720931963,10.54899579,113500.0,113490.0,1.90191837]
[1761720932278,9.88971126,113500.0,113490.0,1.90191837]
[1761720932503,9.68177568,113500.0,113490.0,2.07814535]
[1761720932710,9.64148432,113500.0,113490.0,2.12913535]
[1761720932918,9.64148432,113500.0,113490.0,2.49860087]
[1761720933536,9.64148432,113500.0,113490.0,2.12913535]
[1761720934192,9.64148432,113500.0,113490.0,2.49860087]
[1761720934623,9.62244936,113500.0,113490.0,2.49860087]
[1761720936028,9.62244936,113500.0,113490.0,2.49960087]
[1761720936641,9.62244936,113500.0,113490.0,2.10879535]
[1761720936843,9.64146934,113500.0,113490.0,2.10879535]
[1761720937470,9.81768079,113500.0,113490.0,2.10879535]
[1761720937884,10.38714631,113500.0,113490.0,1.90491837]
[1761720938812,10.38714631,113500.0,113490.0,1.90391837]
[1761720939017,10.41091859,113500.0,113490.0,1.90191837]
[1761720939445,10.7007376,113500.0,113490.0,1.90191837]
[1761720939617,11.07020312,113500.0,113490.0,1.90191837]
[1761720939983,10.7007376,113500.0,113490.0,1.90191837]
[1761720942200,11.07020312,113500.0,113490.0,1.90191837]
[1761720942642,11.11843938,113500.0,113490.0,1.90191837]
[1761720943539,11.11843646,113500.0,113490.0,1.90191837]
[1761720943958,10.74897094,113500.0,113490.0,1.90191837]
[1761720944812,11.11843646,113500.0,113490.0,1.90191837]
[1761720945474,10.37950542,113500.0,113490.0,1.90191837]
[1761720945688,10.74897094,113500.0,113490.0,1.90191837]
[1761720947395,10.74906677,113500.0,113490.0,1.90191837]
[1761720951180,10.71734264,113500.0,113490.0,1.90191837]
[1761720952047,10.74906677,113500.0,113490.0,1.90191837]
[1761720954062,10.71734264,113500.0,113490.0,1.90191837]
[1761720954484,10.71734264,113500.0,113490.0,2.10654535]
[1761720954485,9.68175083,113500.0,113490.0,2.10654535]
[1761720954653,9.66523849,113500.0,113490.0,2.13029535]
[1761720954844,9.64146621,113500.0,113490.0,2.13029535]
[1761720955043,9.64146621,113500.0,113490.0,2.22011436]
[1761720955242,9.64146621,113500.0,113490.0,2.13029535]
[1761720956297,9.64146621,113500.0,113490.0,2.13229535]
[1761720956655,9.64146621,113500.0,113490.0,2.5028567]
[1761720958268,9.64146621,113500.0,113490.0,2.13329535]
[1761720959441,9.64146621,113500.0,113490.0,2.10954535]
[1761720960531,9.64146621,113500.0,113490.0,2.13329535]
[1761720961751,9.62244623,113500.0,113490.0,2.13329535]
[1761720962784,9.61419006,113500.0,113490.0,2.13329535]
[1761720962985,9.62244403,113500.0,113490.0,2.13329535]
[1761720964220,9.62244403,113500.0,113490.0,2.10954535]
[1761720965218,9.62244403,113500.0,113490.0,2.5028567]
[1761720965640,9.62244403,113500.0,113490.0,2.13329535]
[1761720965847,9.62244403,113500.0,113490.0,2.10954535]
[1761720966438,9.64146125,113500.0,113490.0,2.10954535]
[1761720967931,10.0176727,113500.0,113490.0,2.08114535]
[1761720968135,10.10749171,113500.0,113490.0,2.08114535]
[1761720968736,10.10749171,113500.0,113490.0,2.09606535]
[1761720969035,10.10749171,113500.0,113490.0,2.09406535]
[1761720969317,10.10749171,113500.0,113490.0,2.10588535]
[1761720969519,9.84146125,113500.0,113490.0,2.10588535]
[1761720969704,9.41993638,113500.0,113490.0,2.58778571]
[1761720971294,9.41993638,113500.0,113490.0,2.4979667]
[1761720973490,9.4199349,113500.0,113490.0,2.4979667]
[1761720976443,9.4199349,113500.0,113490.0,2.4989667]
[1761720977591,9.4199349,113500.0,113490.0,2.5009667]
[1761720977793,9.4199349,113500.0,113490.0,2.96034706]
[1761720977960,9.4199349,113500.0,113490.0,3.05016607]
[1761720978162,9.4199349,113500.0,113490.0,2.68060472]
[1761720978663,9.41993687,113500.0,113490.0,2.59078571]
[1761720978837,9.41993687,113500.0,113490.0,2.93078571]
[1761720979296,9.41168241,113500.0,113490.0,3.30034706]
[1761720981862,9.41168241,113500.0,113490.0,2.93078571]
[1761720982249,9.41993837,113500.0,113490.0,2.93078571]
[1761720983353,9.41993957,113500.0,113490.0,2.93078571]
[1761720986924,9.22238245,113500.0,113490.0,3.02060472]
[1761720989034,9.22238245,113500.0,113490.0,2.93078571]
[1761720990891,9.04203932,113500.0,113490.0,2.93078571]
[1761721000517,9.04203932,113500.0,113490.0,2.96696799]
[1761721000684,9.03378216,113500.0,113490.0,2.96696799]
[1761721000887,9.03378216,113500.0,113490.0,2.99344427]
[1761721002151,9.04204334,113500.0,113490.0,2.99344427]
[1761721002754,9.04204334,113500.0,113490.0,3.02099556]
[1761721003790,9.04204334,113500.0,113490.0,2.95726199]
[1761721004869,9.04204334,113500.0,113490.0,2.93078571]